Cogmind - Beta 13 @@@ ROGUE MODE // 2024.05.31 @ 16:34:09 Player: Padacuw Result: Destroyed by G-47 Trooper with Particle Gun Performance ------------- Evolutions (1) 500 Regions Visited (2) 400 Robots Destroyed (17) 85 Value Destroyed (506) 506 Prototype IDs (0) 0 Alien Tech Used (0) 0 Bonus (0) 0 TOTAL SCORE: 1491 Bonus ------- None Cogmind --------- Core Integrity 0/400 Matter 193/300 Energy 100/100 System Corruption 4% Temperature Cool (9) Movement Core (200) Ox3 Location -9/Materials Parts ------- > --- POWER (1) -------- (None) > --- PROPULSION (2) --- (None) > --- UTILITY (3) ------ Medium Storage Unit Terrain Scan Processor > --- WEAPON (3) ------- (None) > --- INVENTORY (10) --- Ion Engine Ion Engine Light Ion Engine Improved Heat Sink Small Storage Unit Medium Storage Unit ECM Suite Peak State ------------ > --- POWER ------------ Light Ion Engine > --- PROPULSION ------- Aluminum Leg Aluminum Leg > --- UTILITY ---------- Improved Heat Sink Medium Storage Unit > --- WEAPON ----------- Medium Laser Light Assault Rifle > --- INVENTORY -------- Ion Engine Aluminum Leg Wheel Wheel Small Storage Unit Small Storage Unit Medium Storage Unit Terrain Scan Processor Welding Torch [Rating: 10] Favorites ----------- Power Light Ion Engine Engine Light Ion Engine Propulsion Aluminum Leg Leg Aluminum Leg Hover Unit Hover Unit Utility Medium Storage Unit Device Improved Heat Sink Storage Medium Storage Unit Processor Terrain Scan Processor Protection Light Armor Plating Weapon Light Assault Rifle Energy Gun Medium Laser Ballistic Gun Light Assault Rifle Launcher Grenade Launcher Special Weapon Welding Torch Build | -11 -10 -9 ------- Run | Yrd Mat Mat Slots Evolved 2 | . . 2 Power . | . . . Propulsion . | . . . Utility 1 | . . 1 Weapon 1 | . . 1 Parts Attached 21 | 5 11 5 Power 3 | 1 1 1 Engine 3 | 1 1 1 Core . | . . . Reactor . | . . . Propulsion 6 | 2 3 1 Treads . | . . . Leg 5 | 2 3 . Wheel . | . . . Hover 1 | . . 1 Flight . | . . . Utility 4 | . 3 1 Device 1 | . 1 . Storage 1 | . 1 . Processor 1 | . . 1 Hackware . | . . . Protection 1 | . 1 . Artifact . | . . . Weapon 8 | 2 4 2 Energy Gun 5 | 2 2 1 Energy Cannon . | . . . Ballistic Gun 1 | . 1 . Ballistic Cannon . | . . . Launcher 1 | . . 1 Special Weapon 1 | . 1 . Impact Weapon . | . . . Slashing Weapon . | . . . Piercing Weapon . | . . . Special Melee Weapon . | . . . Unidentified Prototypes . | . . . Corrupted Parts 1 | . . 1 System Corruption 4 | . . 4 Parts Lost 15 | . 9 6 Power 3 | . 2 1 Propulsion 5 | . 4 1 Utility 1 | . . 1 Weapon 6 | . 3 3 Highest Loss Streak 5 | . 4 5 To Critical Strikes . | . . . Average Slot Usage (%) 79 | . 83 68 Engine 10 | . 9 10 Leg 15 | . 20 . Device 2 | . 2 . Storage 13 | . 14 11 Processor 2 | . . 11 Protection 8 | . 10 3 Energy Gun 10 | . 11 10 Ballistic Gun 12 | . 12 10 Launcher 2 | . . 10 Naked Turns . | . . . Heaviest Build 24 | 7 20 24 Greatest Support 20 | 20 20 3 Greatest Overweight (x) 7 | . 4 7 Average Overweight (x) 1 | . . 5 Largest Inventory Capacity 10 | 5 10 10 Average Capacity 9 | 5 9 10 Most Carried 10 | 5 10 9 Average Carried 8 | 2 9 6 Final Capacity 10 | 5 10 10 Final Carried 10 | 4 10 7 Class Distribution -------------------- 70% | Mutant 15% | Gunner 7% | Scavenger-Mutant 7% | Tank Dominant Class ---------------- Mutant | -10/Materials Gunner | -9/Materials Resources | -11 -10 -9 ----------- Run | Yrd Mat Mat Matter Collected 370 | 250 120 . Remotely . | . . . Salvage Created 546 | 50 390 106 Parts 40 | 1 29 10 Haulers Intercepted . | . . . Recyclers Shooed 1 | . 1 . Parts Field Recycled . | . . . Retrieved Matter . | . . . Parts Self-Destructed . | . . . Prevented . | . . . Kills | -11 -10 -9 ------- Run | Yrd Mat Mat Combat Hostiles Destroyed 11 | 1 9 1 Guns 9 | 1 8 . AOE 2 | . 1 1 Classes Destroyed 5 | 1 1 3 Builder 1 | . . 1 Recycler 1 | . . 1 Watcher 4 | . 2 2 Grunt 10 | 1 9 . Sentry 1 | . . 1 Best Kill Streak 4 | 1 2 4 Combat Bots Only 2 | 1 2 1 Max Kills in Single Turn 1 | 1 1 1 Gunslinging . | . . . Exploded 1 | . 1 1 Melee . | . . . Uniques/NPCs Destroyed . | . . . Combat | -11 -10 -9 -------- Run | Yrd Mat Mat Hostile Shots Fired 156 | 9 75 72 Missed 37 | 4 13 20 Damage Taken 1779 | 54 958 767 Core 576 | 23 146 407 Absorbed by Shields . | . . . Core Remaining (%) 61 | 90 32 . Volleys Fired 81 | 7 63 11 Largest 3 | 2 2 3 Hottest 100 | 90 90 100 Shots Fired 146 | 14 105 27 Gun 136 | 14 101 21 Cannon . | . . . Launcher 6 | . . 6 Special 4 | . 4 . Kinetic 52 | . 41 11 Thermal 68 | 7 51 10 Explosive 6 | . . 6 Electromagnetic 20 | 7 13 . Robot Hit Streak 15 | 8 15 5 Robot Miss Streak 5 | 1 5 5 Penetration Max . | . . . Secondary Targets 1 | . 1 . Max Gunslinging Chain 1 | . 1 . Shots Hit Robots 92 | 10 67 15 Core Hits 37 | 2 25 10 Critical Kills . | . . . Critical Parts Destroyed . | . . . Critical Strikes 1 | . 1 . Burn 1 | . 1 . Melee Attacks . | . . . Impact . | . . . Slashing . | . . . Piercing . | . . . Sneak Attacks . | . . . Combat Hostiles . | . . . Follow-up Attacks . | . . . Damage Inflicted 1219 | 123 744 352 Guns 934 | 123 704 107 Cannons . | . . . Explosions 280 | . 36 244 Melee . | . . . Ramming 1 | . . 1 Kinetic 277 | . 232 45 Thermal 580 | 62 456 62 Explosive 244 | . . 244 Electromagnetic 117 | 61 56 . Impact . | . . . Slashing . | . . . Piercing . | . . . Highest Corruption 4 | . 2 4 Average Corruption 2 | . 2 4 Corruption Purged . | . . . Corruption Blocked . | . . . Effects 10 | . 6 4 Message Errors 6 | . 3 3 Matter Fused 2 | . 1 1 Data Loss (minor) 1 | . 1 . Misfires 1 | . 1 . Overload Shots . | . . . Overflow Damage 19 | . . 19 Projectiles . | . . . Explosions 19 | . . 19 Melee . | . . . Knockbacks . | . . . Impact . | . . . Kinetic . | . . . Secondary . | . . . Self-Inflicted Damage 27 | . . 27 Shots 1 | . . 1 Rammed 1 | . . 1 Targets Rammed 1 | . . 1 Kicked . | . . . Crushed . | . . . Highest Temperature 241 | 240 241 115 Average Temperature 82 | 136 85 33 Received Heat Transfer 834 | 30 435 369 Siege Activations . | . . . Robots Corrupted . | . . . Combat Hostiles . | . . . Parts Fried . | . . . Impact Corruptions . | . . . Robots Melted . | . . . Combat Hostiles . | . . . Parts Melted 4 | 2 1 1 Heat Transferred 1621 | 185 1251 185 Parts Sabotaged . | . . . Parts Stolen . | . . . Parts Stripped . | . . . Power Chain Reactions 1 | . 1 . Alert | -11 -10 -9 ------- Run | Yrd Mat Mat Peak Influence 190 | 20 190 78 Initial 13 | . 13 5 Average 27 | 2 31 24 Maximum Alert Level . | . . . Low Security (%) 100 | 100 100 100 Level 1 . | . . . Level 2 . | . . . Level 3 . | . . . Level 4 . | . . . Level 5 . | . . . High Security . | . . . Max Security . | . . . Squads Dispatched 1 | . 1 . Investigation . | . . . Extermination . | . . . Reinforcement 1 | . 1 . Assault . | . . . Garrison . | . . . Intercept . | . . . Searches Triggered . | . . . Construction Impeded . | . . . Haulers Reinforced . | . . . Active Scanning Responses . | . . . Cargo Convoy Interrupts . | . . . Stealth | -11 -10 -9 --------- Run | Yrd Mat Mat Distress Signals 2 | . 1 1 Communications Jammed . | . . . Distress Signals . | . . . Times Spotted 30 | 1 18 11 Peak Tracking Total 5 | 1 3 5 Tactical Retreats 1 | . 1 . Traps | -11 -10 -9 ------- Run | Yrd Mat Mat Traps Triggered 4 | . 3 1 Indirectly . | . . . Trap Hack Attempts . | . . . Triggered . | . . . Disarmed . | . . . Reprogrammed . | . . . Reused . | . . . Traps Extracted . | . . . Installed . | . . . Triggered . | . . . Machines | -11 -10 -9 ---------- Run | Yrd Mat Mat Machines Disabled 2 | . 1 1 Max in Single Turn 1 | . 1 1 Machines Repaired . | . . . Machines Dismantled . | . . . Machines Sabotaged . | . . . Overloaded Fab Kills . | . . . Hacking | -11 -10 -9 --------- Run | Yrd Mat Mat Machines Accessed 1 | . 1 . Terminals 1 | . 1 . Fabricators . | . . . Repair Stations . | . . . Recycling Units . | . . . Scanalyzers . | . . . Garrison Access . | . . . Total Hacks 2 | . 2 . Successful . | . . . Failed 2 | . 2 . Catastrophic 1 | . 1 . Database Lockouts . | . . . Manual . | . . . Terminals 2 | . 2 . Fabricators . | . . . Repair Stations . | . . . Recycling Units . | . . . Scanalyzers . | . . . Garrison Access . | . . . Terminal Hacks . | . . . Fabricator Hacks . | . . . Repair Station Hacks . | . . . Recycling Unit Hacks . | . . . Scanalyzer . | . . . Garrison Access Hacks . | . . . Unauthorized Hacks . | . . . Terminals . | . . . Fabricators . | . . . Repair Stations . | . . . Recycling Units . | . . . Scanalyzers . | . . . Garrison Access . | . . . Data Cores Recovered . | . . . Used . | . . . Hacking Detections 1 | . 1 . Full Trace Events . | . . . Feedback Events . | . . . Feedback Blocked . | . . . Robot Schematics Acquired . | . . . Robots Built . | . . . Authchips . | . . . Time . | . . . Total Robot Build Rating . | . . . Part Schematics Acquired . | . . . Parts Built . | . . . Authchips . | . . . Time . | . . . Total Part Build Rating . | . . . Parts Repaired . | . . . Time . | . . . Parts Recycled . | . . . Recycled Matter . | . . . Retrieved Matter . | . . . Retrieved Components . | . . . Parts Scanalyzed . | . . . Part Schematics Acquired . | . . . Parts Damaged . | . . . Bothacking | -11 -10 -9 ------------ Run | Yrd Mat Mat Used RIF Installer . | . . . Robots Hacked . | . . . Non-combat . | . . . Combat . | . . . Robot Hacks Applied . | . . . Relay Couplers Released . | . . . Fabnet Peak Effective % . | . . . Robots Rewired . | . . . Allies Hacked . | . . . Hacks Repelled . | . . . Allies | -11 -10 -9 -------- Run | Yrd Mat Mat Total Allies . | . . . Largest Group . | . . . Highest-Rated Group . | . . . Highest-Rated Ally . | . . . Total Orders . | . . . Ally Attacks . | . . . Total Damage . | . . . Kills . | . . . Allies Corrupted . | . . . Allies Melted . | . . . Intel | -11 -10 -9 ------- Run | Yrd Mat Mat Robot Analysis Total . | . . . Derelict Logs Recovered . | . . . Drone Launches . | . . . Drone Recoveries . | . . . Exploration | -11 -10 -9 ------------- Run | Yrd Mat Mat Turns Passed 2067 | 109 1443 515 Spaces Moved 1072 | 73 864 135 Core 290 | 18 137 135 Treads . | . . . Legs 782 | 55 727 . Wheels . | . . . Hover . | . . . Flight . | . . . Fastest Speed 50 | 50 120 200 Average Speed 164 | 102 140 347 Slowest Speed 400 | 120 250 400 Overloaded Moves . | . . . Propulsion Burnouts . | . . . Robots Hopped . | . . . Cave-ins Triggered . | . . . Exploration Rate (%) 37 | 7 93 12 Regions Visited 2 Branch Regions . Pre-discovered Areas . | . . . Known Exits Taken . | . . . Unknown Exits Taken 2 | 1 1 . Scrap Searched . | . . . Spaces Dug . | . . . Terrain Destroyed 41 | . 4 37 Melee . | . . . Projectile . | . . . AOE 41 | . 4 37 Terrain Rammed . | . . . Walls Destroyed . | . . . Machines Disabled . | . . . Actions | -11 -10 -9 --------- Run | Yrd Mat Mat Total 1246 | 93 994 159 Wait 40 | . 35 5 Move 1070 | 72 863 135 Hop . | . . . Pick Up 28 | 9 17 2 Fast Attach 1 | . 1 . Attach 17 | 5 7 5 Detach . | . . . Swap 3 | . 3 . Drop 5 | . 5 . Fire 81 | 7 63 11 Melee . | . . . Ram 1 | . . 1 Kick . | . . . Crush . | . . . Escape Stasis . | . . . Rewire . | . . . Trap . | . . . Miscellaneous . | . . . Route ------- -11/Scrapyard -10/Materials (discovered 4 exits: *Mat x3 / [*Min]) -9/Materials History --------- Turn | Location | Event 2 | -11/Scrapyard | Met Revision 17 69 | -11/Scrapyard | Discovered new exit (range 8) 110 | -11/Scrapyard | Entered Materials 326 | -10/Materials | Build established: Mutant 408 | -10/Materials | Core integrity fell below 50% 554 | -10/Materials | Discovered new exit (range 16) 679 | -10/Materials | Discovered new exit (range 14) 835 | -10/Materials | Discovered new exit (range 9) 1020 | -10/Materials | Discovered new exit (range 16) 1237 | -10/Materials | Lost 4 parts (1p2n1w) 1553 | -10/Materials | Entered another Materials area 1553 | -9/Materials | Evolved 2 slots: Utility x1, Weapon x1 1993 | -9/Materials | Build established: Gunner 2057 | -9/Materials | Core integrity fell below 50% 2061 | -9/Materials | Core integrity fell below 20% 2068 | -9/Materials | Destroyed by G-47 Trooper with Particle Gun Last Messages --------------- U-05 Engineer builds a Wall. U-05 Engineer lays Concrete. System corrupted: Matter fused (-8). U-05 Engineer builds a Wall. Grenade Launcher destroyed. Med. Laser destroyed. K-01 Serf collects debris. Slammed into K-01 Serf. Ramming works as a last resort when unarmed or blocked, but can have serious negative consequences. Lgt. Assault Rifle destroyed. Ion Engine destroyed. Hover Unit destroyed. G-34 Mercenary destroyed. K-01 Serf collects debris. P/JLLNKIB,AXRAFI1F3M HMKP K-01 Serf collects debris. Critical hit (Burn: +37). K-01 Serf collects debris. Map ----- +----------------------------------------------------+ | ????????# # """ **!##??????????????????????????? | | ????????# + * ##??????????????????????????? | | ????????# # """ *! ##??????????????????????????? | | ????????# # """ ##??##+#????????????????????? | | ????##### # """ ##### ########?##??????????? | | ????# # + # ?? #??????????? | | ????# ############## # #??????????? | | ????# #????######### # """"""" #######????? | | ???#####+#####???????#!! # """"""" # #????? | | ???# #???????#!! # """"""" # """ #????? | | ???# """ """ #???????#// + """"""" # """ #????? | | ???# """ """ #???????#// # """"""" # """ #????? | | ???# """ """ #???????#!! # # #????? | | ???# #???????#!! ########+## """ #????? | | ???# #???????##### !# """ #????? | | ???# #???????????# !+%""" #????? | | ???# """T""" #???????????# ########### #????? | | ???###########???????????# #?????????# #????? | | ?????????????????????????# #?????????# #????? | | ????????????????######??## ##????????# #????? | | ???????????????##!!!!##?## ##????????#######????? | | ???????????????#! !# # ##???????????????????? | | ???????????????# # # ##???????????????????? | | ???????????????# ==### ## ##???????????????????? | | ???????????#####g!%[#####%%! #???????????????????? | | ???? g * @ #???????????????????? | | ???? u a kY #???????????????????? | | ?????## ##### ##### * #???????????????????? | | ??????## ??????######## ##+###???????????????????? | | ?????????????????????# ? ??????????????????????? | | ?????????????????????# ?""??????????????????????? | | ?????????????????????# ?""??????????????????????? | | ?????????????????????# ??""??????????????????????? | | ?????????????????????# ??????????????????????????? | | ?????????????????????# ??????????????????????????? | | ?????????????????????????????????????????????????? | | ?????????????????????????????????????????????????? | | ?????????????????????????????????????????????????? | | ?????????????????????????????????????????????????? | | ?????????????????????????????????????????????????? | | ?????????????????????????????????????????????????? | | ?????????????????????????????????????????????????? | | ?????????????????????????????????????????????????? | | ?????????????????????????????????????????????????? | | ?????????????????????????????????????????????????? | | ?????????????????????????????????????????????????? | | ?????????????????????????????????????????????????? | | ?????????????????????????????????????????????????? | | ?????????????????????????????????????????????????? | | ?????????????????????????????????????????????????? | +----------------------------------------------------+ Best States ------------- Heat Dissipation 39 Energy Generation 10 Energy Capacity 250 Matter Stores 300 Matter Capacity 300 Sight Range 16 Terrain Scan Density 85 Armor Coverage 150 Evasion (%) 55 Item Schematics ----------------- None Robot Schematics ------------------ None Fabricated ------------ Nothing Alien Tech Used ----------------- None Achievements -------------- Crack Shot Storm Trooper Challenges ------------ None Game ------ Seed LightpackLightpackSlayer Manual? 0 Play Time 00:33:14 Cumulative 1.5 hours Start 2024.05.31 @ 13:30:01 End 2024.05.31 @ 16:34:09 Sessions 2 Manual Loads 0 Difficulty Rogue Special Mode None Game No. 2 Rogue 2 Adventurer 0 Explorer 0 Win Type - Total 0 Types 0/0/0/0/0/0/0/0/0 Lore% 6 Gallery% 2 Achievement% 4 Wizard Run 0 Options --------- Layout 1 ASCII 0 Keyboard 0 Movement Arrows Keybinds 0 Fullscreen 1 Font 16/SmallcapsGlow Map View 50x40 Zoom Use 0% Tactical HUD 0 Map Filters NONE Filters NONE Steam SD RUN: b18be279-a168-4ef0-a156-f3faa58a3299